fUST/lending_fUST_20260525
["ID","MTS","AMOUNT","RATE_DAILY","PERIOD"]
[422943704,1779663049000,-500.0,8.767e-05,2]
[422943722,1779663049000,-500.0,8.767e-05,2]
[422943692,1779663049000,-500.0,8.767e-05,2]
[422943697,1779663049000,-498.19,8.767e-05,2]
[422943698,1779663049000,-500.0,8.767e-05,2]
[422943701,1779663049000,-472.47738368,8.767e-05,2]
[422943700,1779663049000,-500.0,8.767e-05,2]
[422943699,1779663049000,-500.0,8.767e-05,2]
[422943702,1779663049000,-500.0,8.767e-05,2]
[422943706,1779663049000,-605.87,8.767e-05,2]
[422943716,1779663049000,-500.0,8.767e-05,2]
[422943703,1779663049000,-500.0,8.767e-05,2]
[422943710,1779663049000,-500.0,8.767e-05,2]
[422943709,1779663049000,-500.0,8.767e-05,2]
[422943729,1779663049000,-500.0,8.767e-05,2]
[422943728,1779663049000,-500.0,8.767e-05,2]
[422943730,1779663049000,-500.0,8.767e-05,2]
[422943718,1779663049000,-500.0,8.767e-05,2]
[422943714,1779663049000,-186.26,8.767e-05,2]
[422943717,1779663049000,-500.0,8.767e-05,2]
[422943712,1779663049000,-500.0,8.767e-05,2]
[422943707,1779663049000,-500.0,8.767e-05,2]
[422943715,1779663049000,-576.28,8.767e-05,2]
[422943713,1779663049000,-500.0,8.767e-05,2]
[422943705,1779663049000,-500.0,8.767e-05,2]
[422943708,1779663049000,-500.0,8.767e-05,2]
[422943711,1779663049000,-500.0,8.767e-05,2]
[422943796,1779663050000,-500.0,8.767e-05,2]
[422943794,1779663050000,-517.55,8.767e-05,2]
[422943792,1779663050000,-500.0,8.767e-05,2]
[422943789,1779663050000,-500.0,8.767e-05,2]
[422943793,1779663050000,-500.0,8.767e-05,2]
[422943783,1779663050000,-356.678991,8.767e-05,2]
[422943788,1779663050000,-500.0,8.767e-05,2]
[422943787,1779663050000,-1281.86636,8.767e-05,2]
[422943782,1779663050000,-356.678991,8.767e-05,2]
[422943785,1779663050000,-1281.86636,8.767e-05,2]
[422943795,1779663050000,-500.0,8.767e-05,2]
[422943791,1779663050000,-500.0,8.767e-05,2]
[422943797,1779663050000,-500.0,8.767e-05,2]
[422943803,1779663050000,-500.0,8.767e-05,2]
[422943800,1779663050000,-321.06859929,8.767e-05,2]
[422943799,1779663050000,-159.87,8.767e-05,2]
[422943801,1779663050000,-500.0,8.767e-05,2]
[422943811,1779663050000,-356.23,9.041e-05,2]
[422943804,1779663050000,-584.86,8.767e-05,2]
[422943778,1779663050000,-1211.138147,8.767e-05,2]
[422943812,1779663050000,-523.6,9.041e-05,2]
[422943802,1779663050000,-500.0,8.767e-05,2]
[422943809,1779663050000,-500.0,9.041e-05,2]
[422943806,1779663050000,-426.81,9.041e-05,2]
[422943805,1779663050000,-500.0,9.041e-05,2]
[422943808,1779663050000,-500.0,9.041e-05,2]
[422943798,1779663050000,-519.4,8.767e-05,2]
[422943781,1779663050000,-356.678991,8.767e-05,2]
[422943773,1779663050000,-2629.414118,8.767e-05,2]
[422943780,1779663050000,-356.678991,8.767e-05,2]
[422943755,1779663050000,-151.787062,8.767e-05,2]
[422943756,1779663050000,-500.0,8.767e-05,2]
[422943754,1779663050000,-151.787062,8.767e-05,2]
[422943758,1779663050000,-151.0,8.767e-05,2]
[422943759,1779663050000,-151.0,8.767e-05,2]
[422943768,1779663050000,-597.72,8.767e-05,2]
[422943770,1779663050000,-500.0,8.767e-05,2]
[422943757,1779663050000,-151.787062,8.767e-05,2]
[422943769,1779663050000,-500.0,8.767e-05,2]
[422943764,1779663050000,-151.0,8.767e-05,2]
[422943765,1779663050000,-151.0,8.767e-05,2]
[422943761,1779663050000,-151.0,8.767e-05,2]
[422943784,1779663050000,-1281.86636,8.767e-05,2]
[422943762,1779663050000,-500.0,8.767e-05,2]
[422943767,1779663050000,-314.02,8.767e-05,2]
[422943763,1779663050000,-151.0,8.767e-05,2]
[422943766,1779663050000,-172.18,8.767e-05,2]
[422943772,1779663050000,-2629.414118,8.767e-05,2]
[422943771,1779663050000,-500.0,8.767e-05,2]
[422943774,1779663050000,-2629.414118,8.767e-05,2]
[422943775,1779663050000,-2629.414118,8.767e-05,2]
[422943810,1779663050000,-500.0,9.041e-05,2]
[422943776,1779663050000,-1211.138147,8.767e-05,2]
[422943777,1779663050000,-1211.138147,8.767e-05,2]
[422943779,1779663050000,-1211.138147,8.767e-05,2]
[422943786,1779663050000,-1281.86636,8.767e-05,2]
[422943760,1779663050000,-151.0,8.767e-05,2]
[422943807,1779663050000,-500.0,9.041e-05,2]
[422943790,1779663050000,-500.0,8.767e-05,2]
[422943814,1779663050000,-500.0,9.041e-05,2]
[422943851,1779663050000,-151.0,9.041e-05,2]
[422943848,1779663050000,-160.0,9.041e-05,2]
[422943847,1779663050000,-160.0,9.041e-05,2]
[422943840,1779663050000,-201.91,9.041e-05,2]
[422943849,1779663050000,-419.43,9.041e-05,2]
[422943850,1779663050000,-500.0,9.041e-05,2]
[422943852,1779663050000,-500.0,9.041e-05,2]
[422943854,1779663050000,-500.0,9.041e-05,2]
[422943857,1779663050000,-225.78,9.041e-05,2]
[422943858,1779663050000,-266.26,9.041e-05,2]
[422943855,1779663050000,-391.32,9.041e-05,2]
[422943856,1779663050000,-500.0,9.041e-05,2]
[422943859,1779663050000,-227.54,9.041e-05,2]
[422943861,1779663050000,-500.0,9.041e-05,2]
[422943864,1779663050000,-500.0,9.041e-05,2]
[422943853,1779663050000,-500.0,9.041e-05,2]
[422943863,1779663050000,-500.0,9.041e-05,2]
[422943862,1779663050000,-500.0,9.041e-05,2]
[422943866,1779663050000,-1703.886037,9.041e-05,2]
[422943865,1779663050000,-500.0,9.041e-05,2]
[422943869,1779663050000,-1703.886037,9.041e-05,2]
[422943871,1779663050000,-1703.88603361,9.041e-05,2]
[422943867,1779663050000,-500.0,9.041e-05,2]
[422943870,1779663050000,-1703.886037,9.041e-05,2]
[422943868,1779663050000,-500.0,9.041e-05,2]
[422943813,1779663050000,-500.0,9.041e-05,2]
[422943872,1779663050000,-500.0,9.041e-05,2]
[422943845,1779663050000,-160.0,9.041e-05,2]
[422943846,1779663050000,-160.0,9.041e-05,2]
[422943860,1779663050000,-500.0,9.041e-05,2]
[422943843,1779663050000,-494.8,9.041e-05,2]
[422943815,1779663050000,-500.0,9.041e-05,2]
[422943844,1779663050000,-500.0,9.041e-05,2]
[422943817,1779663050000,-500.0,9.041e-05,2]
[422943824,1779663050000,-500.0,9.041e-05,2]
[422943825,1779663050000,-287.33,9.041e-05,2]
[422943822,1779663050000,-500.0,9.041e-05,2]
[422943818,1779663050000,-500.0,9.041e-05,2]
[422943819,1779663050000,-354.27,9.041e-05,2]
[422943821,1779663050000,-500.0,9.041e-05,2]
[422943823,1779663050000,-500.0,9.041e-05,2]
[422943820,1779663050000,-500.0,9.041e-05,2]
[422943827,1779663050000,-227.54,9.041e-05,2]
[422943828,1779663050000,-305.64,9.041e-05,2]
[422943826,1779663050000,-500.0,9.041e-05,2]
[422943816,1779663050000,-500.0,9.041e-05,2]
[422943838,1779663050000,-378.73,9.041e-05,2]
[422943837,1779663050000,-500.0,9.041e-05,2]
[422943841,1779663050000,-151.0,9.041e-05,2]
[422943839,1779663050000,-500.0,9.041e-05,2]
[422943831,1779663050000,-189.09,9.041e-05,2]
[422943835,1779663050000,-500.0,9.041e-05,2]
[422943832,1779663050000,-209.18,9.041e-05,2]
[422943842,1779663050000,-297.137678,9.041e-05,2]
[422943834,1779663050000,-262.38,9.041e-05,2]
[422943836,1779663050000,-500.0,9.041e-05,2]
[422943833,1779663050000,-351.74,9.041e-05,2]
[422943829,1779663050000,-636.11,9.041e-05,2]
[422943830,1779663050000,-204.94,9.041e-05,2]
[422943918,1779663051000,-583.08,9.315e-05,2]
[422943912,1779663051000,-500.0,9.315e-05,2]
[422943904,1779663051000,-596.22,9.315e-05,2]
[422943911,1779663051000,-500.0,9.315e-05,2]
[422943913,1779663051000,-500.0,9.315e-05,2]
[422943915,1779663051000,-500.0,9.315e-05,2]
[422943907,1779663051000,-500.0,9.315e-05,2]
[422943910,1779663051000,-500.0,9.315e-05,2]
[422943909,1779663051000,-500.0,9.315e-05,2]
[422943914,1779663051000,-500.0,9.315e-05,2]
[422943917,1779663051000,-500.0,9.315e-05,2]
[422943908,1779663051000,-186.03,9.315e-05,2]
[422943916,1779663051000,-500.0,9.315e-05,2]
[422943919,1779663051000,-500.0,9.315e-05,2]
[422943927,1779663051000,-500.0,9.315e-05,2]
[422943924,1779663051000,-356.28,9.315e-05,2]
[422943920,1779663051000,-500.0,9.315e-05,2]
[422943922,1779663051000,-500.0,9.315e-05,2]
[422943925,1779663051000,-500.0,9.315e-05,2]
[422943923,1779663051000,-467.0,9.315e-05,2]
[422943926,1779663051000,-500.0,9.315e-05,2]
[422943929,1779663051000,-2629.414118,9.315e-05,2]
[422943939,1779663051000,-500.0,9.315e-05,2]
[422943932,1779663051000,-578.03,9.315e-05,2]
[422943934,1779663051000,-245.14,9.315e-05,2]
[422943933,1779663051000,-500.0,9.315e-05,2]
[422943905,1779663051000,-500.0,9.315e-05,2]
[422943921,1779663051000,-500.0,9.315e-05,2]
[422943906,1779663051000,-500.0,9.315e-05,2]
[422943876,1779663051000,-271.456468,9.041e-05,2]
[422943896,1779663051000,-199.93732067,9.288e-05,4]
[422943930,1779663051000,-2629.414118,9.315e-05,2]
[422943875,1779663051000,-173.909193,9.041e-05,2]
[422943877,1779663051000,-151.0,9.041e-05,2]
[422943874,1779663051000,-151.0,9.041e-05,2]
[422943873,1779663051000,-151.0,9.041e-05,2]
[422943878,1779663051000,-271.456468,9.041e-05,2]
[422943879,1779663051000,-271.456468,9.041e-05,2]
[422943887,1779663051000,-159.4502419,9.041e-05,2]
[422943889,1779663051000,-884.0,9.097e-05,2]
[422943883,1779663051000,-311.072898,9.041e-05,2]
[422943881,1779663051000,-271.456465,9.041e-05,2]
[422943886,1779663051000,-500.0,9.041e-05,2]
[422943882,1779663051000,-311.072898,9.041e-05,2]
[422943888,1779663051000,-500.0,9.041e-05,2]
[422943885,1779663051000,-311.0729,9.041e-05,2]
[422943901,1779663051000,-500.0,9.315e-05,2]
[422943891,1779663051000,-167.34817333,9.194e-05,7]
[422943902,1779663051000,-168.14,9.315e-05,2]
[422943892,1779663051000,-453.79594995,9.194e-05,7]
[422943890,1779663051000,-152.0,9.123e-05,7]
[422943897,1779663051000,-606.65,9.315e-05,2]
[422943893,1779663051000,-390.4642836,9.194e-05,7]
[422943895,1779663051000,-213.33406734,9.207e-05,7]
[422943899,1779663051000,-401.43,9.315e-05,2]
[422943900,1779663051000,-500.0,9.315e-05,2]
[422943894,1779663051000,-304.59905165,9.194e-05,7]
[422943898,1779663051000,-603.51,9.315e-05,2]
[422943903,1779663051000,-500.0,9.315e-05,2]
[422943928,1779663051000,-2629.414118,9.315e-05,2]
[422943880,1779663051000,-500.0,9.041e-05,2]
[422943931,1779663051000,-2629.4141245,9.315e-05,2]
[422943969,1779663051000,-151.0,9.588e-05,2]
[422943977,1779663051000,-410.18556693,9.588e-05,7]
[422943972,1779663051000,-343.9434511,9.588e-05,2]
[422943971,1779663051000,-369.9635279,9.588e-05,7]
[422943970,1779663051000,-151.0,9.588e-05,2]
[422943973,1779663051000,-232.39460563,9.588e-05,7]
[422943974,1779663051000,-240.66691697,9.588e-05,7]
[422943975,1779663051000,-188.15440344,9.588e-05,7]
[422943989,1779663051000,-500.0,9.589e-05,2]
[422943979,1779663051000,-500.0,9.589e-05,2]
[422943990,1779663051000,-500.0,9.589e-05,2]
[422943981,1779663051000,-500.0,9.589e-05,2]
[422943983,1779663051000,-249.73630241,9.589e-05,2]
[422943968,1779663051000,-151.0,9.588e-05,2]
[422943980,1779663051000,-500.0,9.589e-05,2]
[422943982,1779663051000,-196.91,9.589e-05,2]
[422943984,1779663051000,-500.0,9.589e-05,2]
[422943978,1779663051000,-362.32292161,9.588e-05,2]
[422943985,1779663051000,-500.0,9.589e-05,2]
[422943988,1779663051000,-500.0,9.589e-05,2]
[422943987,1779663051000,-540.39,9.589e-05,2]
[422943994,1779663051000,-318.79,9.589e-05,2]
[422943993,1779663051000,-500.0,9.589e-05,2]
[422943991,1779663051000,-256.33,9.589e-05,2]
[422943996,1779663051000,-455.08,9.589e-05,2]
[422943995,1779663051000,-500.0,9.589e-05,2]
[422943992,1779663051000,-500.0,9.589e-05,2]
[422943940,1779663051000,-160.09183141,9.492e-05,7]
[422943986,1779663051000,-500.0,9.589e-05,2]
[422943967,1779663051000,-151.0,9.588e-05,2]
[422943884,1779663051000,-311.072898,9.041e-05,2]
[422943959,1779663051000,-220.51714316,9.506e-05,7]
[422943935,1779663051000,-500.0,9.315e-05,2]
[422943976,1779663051000,-399.87464134,9.588e-05,4]
[422943936,1779663051000,-500.0,9.315e-05,2]
[422943938,1779663051000,-500.0,9.315e-05,2]
[422943941,1779663051000,-158.29214224,9.492e-05,7]
[422943944,1779663051000,-456.89857747,9.492e-05,7]
[422943943,1779663051000,-680.69392493,9.492e-05,7]
[422943945,1779663051000,-157.94829458,9.492e-05,7]
[422943942,1779663051000,-334.69634665,9.492e-05,7]
[422943946,1779663051000,-168.05466561,9.492e-05,7]
[422943947,1779663051000,-323.34996321,9.492e-05,7]
[422943952,1779663051000,-363.49089542,9.498e-05,2]
[422943953,1779663051000,-229.39497164,9.498e-05,7]
[422943949,1779663051000,-323.41023539,9.492e-05,7]
[422943951,1779663051000,-348.59467993,9.497e-05,7]
[422943937,1779663051000,-500.0,9.315e-05,2]
[422943961,1779663051000,-151.787062,9.588e-05,2]
[422943960,1779663051000,-177.0,9.517e-05,2]
[422943963,1779663051000,-151.787062,9.588e-05,2]
[422943964,1779663051000,-151.787054,9.588e-05,2]
[422943962,1779663051000,-151.787062,9.588e-05,2]
[422943948,1779663051000,-158.0906822,9.492e-05,7]
[422943954,1779663051000,-435.20610545,9.506e-05,7]
[422943958,1779663051000,-423.83866,9.506e-05,7]
[422943957,1779663051000,-426.66813469,9.506e-05,7]
[422943966,1779663051000,-201.567722,9.588e-05,2]
[422943955,1779663051000,-187.46963697,9.506e-05,7]
[422943956,1779663051000,-203.44641655,9.506e-05,7]
[422943950,1779663051000,-402.38746554,9.497e-05,7]
[422943965,1779663051000,-151.0,9.588e-05,2]
[422944035,1779663052000,-471.45,9.863e-05,2]
[422944030,1779663052000,-500.0,9.863e-05,2]
[422944032,1779663052000,-228.39532083,9.863e-05,2]
[422944048,1779663052000,-151.0,0.0001,2]
[422944029,1779663052000,-500.0,9.863e-05,2]
[422944025,1779663052000,-500.0,9.863e-05,2]
[422944028,1779663052000,-500.0,9.863e-05,2]
[422944033,1779663052000,-500.0,9.863e-05,2]
[422944026,1779663052000,-500.0,9.863e-05,2]
[422944031,1779663052000,-271.60467917,9.863e-05,2]
[422944044,1779663052000,-703.01611224,0.0001,2]
[422944040,1779663052000,-500.0,9.863e-05,2]
[422944034,1779663052000,-500.0,9.863e-05,2]
[422944042,1779663052000,-622.9,9.863e-05,2]
[422944036,1779663052000,-500.0,9.863e-05,2]
[422944037,1779663052000,-500.0,9.863e-05,2]
[422944038,1779663052000,-500.0,9.863e-05,2]
[422944039,1779663052000,-500.0,9.863e-05,2]
[422944045,1779663052000,-1497.5288805,0.0001,2]
[422944041,1779663052000,-583.01,9.863e-05,2]
[422944057,1779663052000,-383.78,0.00010136,2]
[422944058,1779663052000,-500.0,0.00010136,2]
[422944024,1779663052000,-544.74,9.863e-05,2]
[422944043,1779663052000,-500.0,9.863e-05,2]
[422944027,1779663052000,-500.0,9.863e-05,2]
[422944013,1779663052000,-500.0,9.589e-05,2]
[422944017,1779663052000,-172.5013302,9.589e-05,2]
[422943997,1779663052000,-269.61,9.589e-05,2]
[422943998,1779663052000,-500.0,9.589e-05,2]
[422944002,1779663052000,-1211.138147,9.589e-05,2]
[422943999,1779663052000,-500.0,9.589e-05,2]
[422944001,1779663052000,-1211.138147,9.589e-05,2]
[422944004,1779663052000,-1211.138147,9.589e-05,2]
[422944003,1779663052000,-1211.138147,9.589e-05,2]
[422944015,1779663052000,-500.0,9.589e-05,2]
[422944014,1779663052000,-500.0,9.589e-05,2]
[422944008,1779663052000,-356.678989,9.589e-05,2]
[422944005,1779663052000,-356.678991,9.589e-05,2]
[422944047,1779663052000,-1799.84110717,0.0001,2]
[422944009,1779663052000,-1281.86636,9.589e-05,2]
[422944007,1779663052000,-356.678991,9.589e-05,2]
[422944010,1779663052000,-1281.86636,9.589e-05,2]
[422944012,1779663052000,-1281.866353,9.589e-05,2]
[422944006,1779663052000,-356.678991,9.589e-05,2]
[422944016,1779663052000,-500.0,9.589e-05,2]
[422944019,1779663052000,-327.4986698,9.589e-05,2]
[422944018,1779663052000,-5000.0,8.218e-05,2]
[422944021,1779663052000,-186.40749074,9.592e-05,2]
[422944022,1779663052000,-500.0,9.863e-05,2]
[422944020,1779663052000,-500.0,9.589e-05,2]
[422944023,1779663052000,-500.0,9.863e-05,2]
[422944059,1779663052000,-500.0,0.00010136,2]
[422944000,1779663052000,-500.0,9.589e-05,2]
[422944051,1779663052000,-160.0,0.0001,2]
[422944078,1779663052000,-580.22,0.0001041,2]
[422944087,1779663052000,-500.0,0.00010684,2]
[422944082,1779663052000,-500.0,0.0001041,2]
[422944088,1779663052000,-500.0,0.00010684,2]
[422944080,1779663052000,-508.45,0.0001041,2]
[422944081,1779663052000,-500.0,0.0001041,2]
[422944086,1779663052000,-500.0,0.00010684,2]
[422944090,1779663052000,-500.0,0.00010684,2]
[422944089,1779663052000,-412.71023408,0.00010684,2]
[422944098,1779663052000,-500.0,0.00010958,2]
[422944095,1779663052000,-500.0,0.00010958,2]
[422944083,1779663052000,-500.0,0.00010684,2]
[422944099,1779663052000,-500.0,0.00010958,2]
[422944091,1779663052000,-500.0,0.00010684,2]
[422944096,1779663052000,-500.0,0.00010958,2]
[422944093,1779663052000,-500.0,0.00010958,2]
[422944094,1779663052000,-500.0,0.00010958,2]
[422944097,1779663052000,-478.79,0.00010958,2]
[422944101,1779663052000,-398.16,0.00011232,2]
[422944100,1779663052000,-1849.00895727,0.00011208,2]
[422944103,1779663052000,-508.89,0.00011232,2]
[422944102,1779663052000,-500.0,0.00011232,2]
[422944104,1779663052000,-500.0,0.00011232,2]
[422944046,1779663052000,-1673.26891885,0.0001,2]
[422944092,1779663052000,-319.32,0.00010958,2]
[422944079,1779663052000,-500.0,0.0001041,2]
[422944011,1779663052000,-1281.86636,9.589e-05,2]
[422944084,1779663052000,-500.0,0.00010684,2]
[422944085,1779663052000,-500.0,0.00010684,2]
[422944055,1779663052000,-500.0,0.00010136,2]
[422944050,1779663052000,-160.0,0.0001,2]
[422944052,1779663052000,-160.0,0.0001,2]
[422944049,1779663052000,-160.0,0.0001,2]
[422944054,1779663052000,-289.61,0.00010136,2]
[422944053,1779663052000,-500.0,0.00010136,2]
[422944060,1779663052000,-302.42,0.00010136,2]
[422944062,1779663052000,-250.03,0.00010136,2]
[422944065,1779663052000,-500.0,0.00010136,2]
[422944068,1779663052000,-500.0,0.00010136,2]
[422944064,1779663052000,-500.0,0.00010136,2]
[422944056,1779663052000,-500.0,0.00010136,2]
[422944063,1779663052000,-500.0,0.00010136,2]
[422944076,1779663052000,-500.0,0.0001041,2]
[422944070,1779663052000,-500.0,0.0001041,2]
[422944075,1779663052000,-500.0,0.0001041,2]
[422944072,1779663052000,-305.48,0.0001041,2]
[422944074,1779663052000,-500.0,0.0001041,2]
[422944073,1779663052000,-505.94284286,0.0001041,2]
[422944071,1779663052000,-500.0,0.0001041,2]
[422944069,1779663052000,-500.0,0.00010136,2]
[422944066,1779663052000,-500.0,0.00010136,2]
[422944067,1779663052000,-500.0,0.00010136,2]
[422944061,1779663052000,-500.0,0.00010136,2]
[422944077,1779663052000,-500.0,0.0001041,2]
[422944145,1779663053000,-160.0,0.00014342,2]
[422944150,1779663053000,-152.135008,0.00015686,2]
[422944143,1779663053000,-766.70313116,0.00014342,2]
[422944146,1779663053000,-160.0,0.00014342,2]
[422944147,1779663053000,-2024.74899568,0.00014717,2]
[422944140,1779663053000,-600.0,0.00014155,2]
[422944141,1779663053000,-649.0,0.00014246,2]
[422944152,1779663053000,-152.135008,0.00015686,2]
[422944151,1779663053000,-152.135008,0.00015686,2]
[422944139,1779663053000,-500.0,0.00013972,2]
[422944144,1779663053000,-161.73758927,0.00014342,2]
[422944142,1779663053000,-160.0,0.00014342,2]
[422944149,1779663053000,-720.0,0.00015571,2]
[422944162,1779663053000,-152.135008,0.00015686,2]
[422944154,1779663053000,-152.135008,0.00015686,2]
[422944160,1779663053000,-152.135008,0.00015686,2]
[422944159,1779663053000,-152.135008,0.00015686,2]
[422944157,1779663053000,-152.135008,0.00015686,2]
[422944165,1779663053000,-152.135008,0.00015686,2]
[422944158,1779663053000,-152.135008,0.00015686,2]
[422944153,1779663053000,-152.135008,0.00015686,2]
[422944155,1779663053000,-152.135008,0.00015686,2]
[422944164,1779663053000,-152.135008,0.00015686,2]
[422944163,1779663053000,-152.135008,0.00015686,2]
[422944132,1779663053000,-231.0,0.00013517,2]
[422944156,1779663053000,-152.135008,0.00015686,2]
[422944161,1779663053000,-152.135008,0.00015686,2]
[422944148,1779663053000,-258.0,0.00015517,2]
[422944130,1779663053000,-500.0,0.00013424,2]
[422944119,1779663053000,-300.35993,0.00012077,2]
[422944135,1779663053000,-1000.0,0.00013699,2]
[422944111,1779663053000,-204.0,0.00011517,2]
[422944112,1779663053000,-500.0,0.0001178,2]
[422944106,1779663053000,-500.0,0.00011232,2]
[422944108,1779663053000,-500.0,0.00011506,2]
[422944105,1779663053000,-500.0,0.00011232,2]
[422944107,1779663053000,-500.0,0.00011506,2]
[422944109,1779663053000,-500.0,0.00011506,2]
[422944110,1779663053000,-500.0,0.00011506,2]
[422944113,1779663053000,-589.94,0.0001178,2]
[422944117,1779663053000,-500.0,0.00012054,2]
[422944116,1779663053000,-500.0,0.00012054,2]
[422944115,1779663053000,-500.0,0.0001178,2]
[422944118,1779663053000,-163.09729822,0.00012077,2]
[422944124,1779663053000,-500.0,0.00012602,2]
[422944128,1779663053000,-500.0,0.0001315,2]
[422944125,1779663053000,-500.0,0.00012602,2]
[422944114,1779663053000,-589.68,0.0001178,2]
[422944121,1779663053000,-451.63119054,0.00012268,2]
[422944123,1779663053000,-500.0,0.00012328,2]
[422944166,1779663053000,-152.135008,0.00015686,2]
[422944122,1779663053000,-500.0,0.00012328,2]
[422944127,1779663053000,-500.0,0.00012876,2]
[422944137,1779663053000,-400.0,0.000139,2]
[422944138,1779663053000,-400.0,0.000139,3]
[422944126,1779663053000,-500.0,0.00012876,2]
[422944131,1779663053000,-500.0,0.00013424,2]
[422944133,1779663053000,-500.0,0.00013698,2]
[422944129,1779663053000,-500.0,0.0001315,2]
[422944136,1779663053000,-400.0,0.000139,5]
[422944134,1779663053000,-426.57,0.00013698,2]
[422944120,1779663053000,-233.23247172,0.00012077,2]
[422944168,1779663053000,-152.135008,0.00015686,2]
[422944174,1779663053000,-1413.0,0.00016355,2]
[422944167,1779663053000,-152.135008,0.00015686,2]
[422944213,1779663053000,-1000.0,0.00018841,2]
[422944176,1779663053000,-185.0,0.00016355,2]
[422944204,1779663053000,-500.0,0.00016678,2]
[422944205,1779663053000,-368.83374241,0.00016678,2]
[422944206,1779663053000,-3263.7623,0.00016816,7]
[422944209,1779663053000,-285.0,0.00017517,2]
[422944207,1779663053000,-766.70313116,0.00017,7]
[422944212,1779663053000,-591.67,0.0001863,2]
[422944210,1779663053000,-172.10332433,0.00017632,2]
[422944208,1779663053000,-864.0,0.00017128,2]
[422944211,1779663053000,-2603.79714479,0.00018225,60]
[422944215,1779663053000,-500.0,0.00018917,7]
[422944217,1779663053000,-500.0,0.00018917,7]
[422944199,1779663053000,-360.97986297,0.00016678,2]
[422944216,1779663053000,-500.0,0.00018917,7]
[422944218,1779663053000,-500.0,0.00018917,7]
[422944227,1779663053000,-500.0,0.00018917,7]
[422944225,1779663053000,-500.0,0.00018917,7]
[422944220,1779663053000,-500.0,0.00018917,7]
[422944226,1779663053000,-500.0,0.00018917,7]
[422944221,1779663053000,-500.0,0.00018917,7]
[422944223,1779663053000,-500.0,0.00018917,7]
[422944224,1779663053000,-500.0,0.00018917,7]
[422944222,1779663053000,-500.0,0.00018917,7]
[422944229,1779663053000,-500.0,0.00018917,7]
[422944230,1779663053000,-500.0,0.00018917,7]
[422944231,1779663053000,-536.11,0.00018917,7]
[422944228,1779663053000,-500.0,0.00018917,7]
[422944219,1779663053000,-500.0,0.00018917,7]
[422944201,1779663053000,-500.0,0.00016678,2]
[422944214,1779663053000,-591.67,0.00018904,2]
[422944196,1779663053000,-500.0,0.00016678,2]
[422944175,1779663053000,-447.119,0.00016355,2]
[422944177,1779663053000,-232.597,0.00016355,2]
[422944178,1779663053000,-268.388,0.00016355,2]
[422944169,1779663053000,-3000.0,0.00016,2]
[422944172,1779663053000,-2203.0,0.00016355,2]
[422944171,1779663053000,-3001.210844,0.0001602,2]
[422944170,1779663053000,-3000.0,0.0001601,2]
[422944173,1779663053000,-647.0,0.00016355,2]
[422944179,1779663053000,-200.0,0.00016438,2]
[422944181,1779663053000,-1000.0,0.00016456,5]
[422944198,1779663053000,-500.0,0.00016678,2]
[422944191,1779663053000,-500.0,0.00016678,2]
[422944180,1779663053000,-190.296725,0.00016438,2]
[422944190,1779663053000,-500.0,0.00016678,2]
[422944182,1779663053000,-500.0,0.00016678,2]
[422944187,1779663053000,-500.0,0.00016678,2]
[422944193,1779663053000,-500.0,0.00016678,2]
[422944195,1779663053000,-500.0,0.00016678,2]
[422944185,1779663053000,-500.0,0.00016678,2]
[422944203,1779663053000,-500.0,0.00016678,2]
[422944200,1779663053000,-500.0,0.00016678,2]
[422944202,1779663053000,-500.0,0.00016678,2]
[422944197,1779663053000,-500.0,0.00016678,2]
[422944188,1779663053000,-500.0,0.00016678,2]
[422944189,1779663053000,-500.0,0.00016678,2]